{"text_format":"2","workbook":"xlsx","n_sheets":12,"sheets":["Főösszesítő","Építőmesteri","Gépész","Záradék","Fejezet összesítő","02  Védőcsövek","03  Vezetékek kábelek","04  Szerelvények","05  Lámpatestek","06  Elosztóberendezések","07  Épület külső és belső gyeng","10  Iratok, jegyzőkönyvek"],"not_rendered":{"charts":0,"images":0,"macros":0,"external_links":0,"defined_names":0,"comments":0,"pivot_tables":0},"unopened":[],"bounds":{"document_bytes":16777216,"sheet_cells":100000,"run_cost":"one","rows_first":2000,"rows_last":500,"rows_between":2000,"halvings":0,"cell_chars":16384,"cell_head_chars":4096},"cells_cut":0,"cells_raw":0,"read":"whole","date_system":"1900"}

{"sheet":"Főösszesítő","index":0,"n_rows":13,"n_cols":9,"rows_kept":13,"cut":false,"hidden":false,"merged":[[0,1,0,7],[17,6,17,8],[18,6,18,8],[19,6,19,8],[20,6,20,8]]}
[]
[null,"EFOP-1.2.11-16-2017-00046 Lakóingatlan felújítás"]
[null,"5630 Békés, Széchenyi tér 1. \"A\" ép. 2. em. 11."]
[]
[]
["FŐÖSSZESÍTŐ"]
[]
[{"$nulls":6},"össz.anyag","össz. díj","teljes ár"]
[null,"Építőmesteri munka",{"$nulls":4},{"$f":"Építőmesteri!G31","v":0},{"$f":"Építőmesteri!H31","v":0},{"$f":"SUM(G9:H9)","v":0}]
[null,"Épületvillamossági szakági munkák",{"$nulls":4},{"$f":"Záradék!C25","v":0},{"$f":"Záradék!D25","v":0},{"$f":"SUM(G10:H10)","v":0}]
[null,"Épületgépészeti szakági munkák",{"$nulls":4},{"$f":"Gépész!I32","v":0},{"$f":"Gépész!K32","v":0},{"$f":"SUM(G11:H11)","v":0}]
["Nettó bekerülési ár összesen:",{"$nulls":5},{"$f":"SUM(G9:G11)","v":0},{"$f":"SUM(H9:H11)","v":0},{"$f":"SUM(I9:I11)","v":0}]
["Bruttó bekerülési ár összesen:",null,0.27,null,null,null,{"$f":"G12*1.27","v":0},{"$f":"H12*1.27","v":0},{"$f":"I12*1.27","v":0}]

{"sheet":"Építőmesteri","index":1,"n_rows":32,"n_cols":9,"rows_kept":32,"cut":false,"hidden":false,"merged":[]}
["5630 Békés, Széchenyi tér 1. \"A\" ép. 2. em. 11."]
[]
["Tételszám","Tételkiírás","m.e.","mennyiség","anyag egységár","munkadíj","össz. anyag","össz. díj","teljes ár"]
["44-000-001.3","nyílászáró bontás","m2",29.9,null,null,{"$f":"D4*E4","v":0},{"$f":"D4*F4","v":0},{"$f":"SUM(G4:H4)","v":0}]
["42-000-002.1","padozat bontás","m2",65.7,null,null,0,0,{"$f":"SUM(G5:H5)","v":0}]
["43-000-002.2","kerámia falburkolat bontás","m2",23.3,null,null,0,0,{"$f":"SUM(G6:H6)","v":0}]
["43-000-005","szaniter bontás","db",3,null,null,0,0,{"$f":"SUM(G7:H7)","v":0}]
["21-011-012","bontási törmelék deponálás és elszállítás","m3",4,null,null,0,0,{"$f":"SUM(G8:H8)","v":0}]
["36-90-001.2.1","vakolatjavítás","m2",45,null,null,0,0,{"$f":"SUM(G9:H9)","v":0}]
["42-011-002.1.1.1","aljzatkiegyenlítés","m2",65.7,null,null,0,0,0]
["42-011-002.1.2","alapozó","m2",202.1,null,null,0,0,0]
["42-022-001.1.1.1.2","kerámia padlóburkolat","m2",28.35,null,null,0,0,0]
["42-002-002.1.2.1","10 cm kerámia lábazat","fm",27.5,null,null,0,0,0]
["42-042-005.1.1","laminált parketta","m2",37.299999999999997,null,null,0,0,0]
["42-042-3.1.1","parketta szegő elhelyezés","fm",38.450000000000003,null,null,0,0,0]
["42-012-001.1.1.1.5","kerámia falburkolat","m2",23.3,null,null,0,0,0]
["44-001-002.2.1","műanyag bejárati ajtó (1,00×2,40m)","db",1,null,null,{"$f":"D17*E17","v":0},{"$f":"D17*F17","v":0},{"$f":"SUM(G17:H17)","v":0}]
["44-001-002.2.2","műanyag bejárati ajtó (0,90×2,60m)","db",1,null,null,{"$f":"D18*E18","v":0},{"$f":"D18*F18","v":0},{"$f":"SUM(G18:H18)","v":0}]
["44-001-001-2.2","műanyag középenfelnyíló ablak (1,80×1,80m)","db",2,null,null,{"$f":"D19*E19","v":0},{"$f":"D19*F19","v":0},{"$f":"SUM(G19:H19)","v":0}]
["45-001-001.1.1","műanyag egyszárnyú ablak (0,90×1,80m)","db",2,null,null,{"$f":"D20*E20","v":0},{"$f":"D20*F20","v":0},{"$f":"SUM(G20:H20)","v":0}]
["44-002-001.3.20","fa belső ajtó (0,90×2,10m) mázolás","db",4,null,null,{"$f":"D21*E21","v":0},{"$f":"D21*F21","v":0},{"$f":"SUM(G21:H21)","v":0}]
["44-002-001.3.21","fa belső ajtó (0,75×2,10m) mázolás","db",5,null,null,0,0,0]
["47-011-015.1.1.1","falfestés 2 rtg.-ben","m2",178.8,null,null,0,0,0]
["47-011-015-1.1.2","mennyezet festés","m2",65.7,null,null,0,0,0]
["47-011-016-1","korlát festés","m2",6,null,null,0,0,0]
["48-005-51-1.3","hajlaterősítő szalag elhelyezés","fm",6.15,null,null,0,0,0]
["48-004-001-25","kent szigetelés","m2",4.0999999999999996,null,null,0,0,0]
["54-005-015","Kád elhelyezés","db",1,null,null,0,0,0]
["54-005-016","Mosdókagyló beépítés","db",1,null,null,0,0,0]
["54-005-017","WC beépítés","db",1,null,null,0,0,0]
["Nettó bekerülési ár összesen:",{"$nulls":5},{"$f":"SUM(G4:G30)","v":0},{"$f":"SUM(H4:H30)","v":0},{"$f":"SUM(I4:I30)","v":0}]
["Bruttó bekerülési ár összesen:",null,null,0.27,null,null,{"$f":"G31*1.27","v":0},{"$f":"H31*1.27","v":0},{"$f":"G32+H32","v":0}]

{"sheet":"Gépész","index":2,"n_rows":134,"n_cols":13,"rows_kept":134,"cut":false,"hidden":false,"merged":[]}
["1/0. oldal"]
["Készült a TERC Kft. Adattáraiból * KönyvCalc 22.0 Professzionál   * www.terc.hu * www.konyvcalc.hu *"]
[]
[]
[]
["KönyvCalc for Windows",{"$nulls":6},"1.oldal"]
[]
[]
[{"$nulls":4},"Költségvetés főösszesítő"]
[]
[]
[]
["Név: Békés Város Önkormányzata"]
["Cím: 5630 Békés Petőfi Sándor u. 2."]
["Tárgy: 5630 Békés, Széchenyi tér 1/A. 2. em. 11. számú lakás gázkazán"]
["cseréje."]
["Készítette:"]
["Kelt: 2018.02.28."]
[]
[]
[]
[{"$nulls":7},"Anyagköltség",null,null,"Díjköltség"]
[]
["Gáz szerelés",{"$nulls":7},{"$f":"K108","v":0},"Ft",{"$f":"K109","v":0},"Ft"]
["Szellőzés",{"$nulls":7},{"$f":"L128","v":0},"Ft",{"$f":"L129","v":0},"Ft"]
[]
[]
[]
[]
[]
[]
["1.4 Közvetlen önköltség összesen:",{"$nulls":7},{"$f":"I24+I25","v":0},"Ft",{"$f":"K24+K25","v":0},"Ft"]
[]
["2.1 Árkockázati fedezet vet. alap:",{"$nulls":7},{"$f":"I32+K32","v":0},"Ft"]
["2.2 Árkockázati fedezet (havi 1%):",{"$nulls":4},0,"%",null,0,"Ft"]
[]
["2.3 Anyagigazgatási ksg. vet. alap:",{"$nulls":7},{"$f":"I34","v":0},"Ft"]
["2.4 Anyagigazgatási költség:",{"$nulls":4},0,"%",null,0,"Ft"]
[]
["2.5 Fedezet vetítési alap (1.4):",{"$nulls":9},{"$f":"I34","v":0},"Ft"]
["2.6 Fedezet:",{"$nulls":4},0,"%",null,null,null,0,"Ft"]
[]
["3.1 Tartalékkeret vetítési alap (2.3+2.4+2.5):",{"$nulls":9},{"$f":"I37+I38+I41","v":0},"Ft"]
["3.2 Tartalékkeret:",{"$nulls":4},0,"%",null,null,null,0,"Ft"]
[]
["4.1 ÁFA vetítési alap:",{"$nulls":9},{"$f":"K43","v":0},"Ft"]
["4.2 ÁFA:",{"$nulls":4},27,"%",null,null,null,{"$f":"K46*0.27","v":0},"Ft"]
[]
["5. A munka ára:",{"$nulls":9},{"$f":"K46+K47","v":0},"Ft"]
[]
[]
[{"$nulls":7},"<>",null,null,"<névtelen munka>"]
["1/0. oldal"]
["Készült a TERC Kft. Adattáraiból * KönyvCalc 22.0 Professzionál   * www.terc.hu * www.konyvcalc.hu *"]
[]
[]
[null,null,null,"Technorgáz MIKA6E-KON kondenzációs parapetes gázkazán 6 kW"]
[1,"./","K-tétel"]
[null,null,null,1,"db","A:",null,"Ft",null,null,{"$f":"D59*G59","v":0},"Ft"]
[null,null,null,0,null,"D:",0,"Ft",null,null,{"$f":"D60*G60","v":0},"Ft"]
[null,null,null,0,null,"G:",0,"Ft",null,null,0,"Ft"]
[null,null,null,"Rövid fali tartozék"]
[2,"./","K-tétel"]
[null,null,null,1,"db","A:",null,"Ft",null,null,0,"Ft"]
[null,null,null,0,null,"D:",0,"Ft",null,null,0,"Ft"]
[null,null,null,0,null,"G:",0,"Ft",null,null,0,"Ft"]
[null,null,null,"Mágneses iszapleválasztó"]
[3,"./","K-tétel"]
[null,null,null,1,"db","A:",null,"Ft",null,null,0,"Ft"]
[null,null,null,0,null,"D:",0,"Ft",null,null,0,"Ft"]
[null,null,null,0,null,"G:",0,"Ft",null,null,0,"Ft"]
[4,"./","K-tétel","09 inox gázbek. csö 1/2\"-1/2\" BB"]
[]
[null,null,null,1,"DB","A:",null,"Ft",null,null,0,"Ft"]
[null,null,null,0,null,"D:",0,"Ft",null,null,0,"Ft"]
[null,null,null,0,null,"G:",0,"Ft",null,null,0,"Ft"]
[5,"./","K-tétel","04 golyóscsap 1/2\" KB fix gázra itap"]
[null,null,null,1,"DB","A:",null,"Ft",null,null,{"$f":"D78*G78","v":0},"Ft"]
[null,null,null,0,null,"D:",0,"Ft",null,null,0,"Ft"]
[null,null,null,0,null,"G:",0,"Ft",null,null,0,"Ft"]
[null,null,null,"EPH díja"]
[6,"./","K-tétel"]
[null,null,null,0,"klt","A:",0,"Ft",null,null,0,"Ft"]
[null,null,null,1,null,"D:",null,"Ft",null,null,0,"Ft"]
[null,null,null,1,null,"G:",0,"Ft",null,null,0,"Ft"]
[null,null,null,"Kazán beüzemelése"]
[7,"./","K-tétel"]
[null,null,null,0,"klt","A:",0,"Ft",null,null,0,"Ft"]
[null,null,null,1,null,"D:",null,"Ft",null,null,0,"Ft"]
[null,null,null,0,null,"G:",0,"Ft",null,null,0,"Ft"]
[]
[null,null,null,"Gázellátás terveztetése"]
[8,"./","K-tétel"]
[null,null,null,0,"klt","A:",0,"Ft",null,null,0,"Ft"]
[null,null,null,1,null,"D:",null,"Ft",null,null,0,"Ft"]
[null,null,null,0,null,"G:",0,"Ft",null,null,0,"Ft"]
[null,null,null,"Szerelési munkadíj"]
[9,"./","K-tétel"]
[null,null,null,0,"klt","A:",0,"Ft",null,null,0,"Ft"]
[null,null,null,1,null,"D:",null,"Ft",null,null,0,"Ft"]
[null,null,null,0,null,"G:",0,"Ft",null,null,0,"Ft"]
[null,null,null,"Gázátadással járó ügyintézés díja"]
[10,"./","K-tétel"]
[null,null,null,0,"klt","A:",0,"Ft",null,null,0,"Ft"]
[null,null,null,1,null,"D:",null,"Ft",null,null,0,"Ft"]
[null,null,null,0,null,"G:",0,"Ft",null,null,0,"Ft"]
[null,null,null,"Összesen:"]
[{"$nulls":10},{"$f":"K59+K64+K69+K74+K78+K83+K88+K94+K99+K104","v":0},"Ft"]
[{"$nulls":10},{"$f":"K60+K65+K70+K75+K79+K84+K89+K95+K100+K105","v":0},"Ft"]
[{"$nulls":10},{"$f":"K61+K66+K71+K76+K80+K85+K90+K96+K101+K106","v":0},"Ft"]
[]
[]
["1/2. oldal"]
["Készült a TERC Kft. Adattáraiból * KönyvCalc 22.0 Professzionál   * www.terc.hu * www.konyvcalc.hu *"]
[]
[]
[null,null,null,"Aereco EMM 716 nyílászáróba építhető légbeeresztő"]
[1,"./","K-tétel"]
[null,null,null,4,"db","A:",null,null,"Ft",null,null,{"$f":"D119*G119","v":0},"Ft"]
[null,null,null,0,null,"D:",0,null,"Ft",null,null,{"$f":"D120*G120","v":0},"Ft"]
[null,null,null,0,null,"G:",0,null,"Ft",null,null,0,"Ft"]
[null,null,null,"Szerelési munkadíj"]
[2,"./","K-tétel"]
[null,null,null,0,"klt","A:",0,null,"Ft",null,null,0,"Ft"]
[null,null,null,1,null,"D:",null,null,"Ft",null,null,0,"Ft"]
[null,null,null,0,null,"G:",0,null,"Ft",null,null,0,"Ft"]
[null,null,null,"Összesen:"]
[{"$nulls":11},{"$f":"L119+L124","v":0},"Ft"]
[{"$nulls":11},{"$f":"L120+L125","v":0},"Ft"]
[{"$nulls":11},{"$f":"L121+L126","v":0},"Ft"]
[]
[]
["1/2. oldal"]
["Készült a TERC Kft. Adattáraiból * KönyvCalc 22.0 Professzionál   * www.terc.hu * www.konyvcalc.hu *"]

{"sheet":"Záradék","index":3,"n_rows":28,"n_cols":4,"rows_kept":28,"cut":false,"hidden":false,"merged":[[27,2,27,3],[0,0,0,3],[1,0,1,3],[2,0,2,3],[3,0,3,3],[4,0,4,3],[5,0,5,3],[6,0,6,3],[21,0,21,3],[25,2,25,3],[26,2,26,3]]}
{"$rows_empty":8}
["Név : Békés Szociális lakóingatlan     ",null,"                                       "]
["felújítás és energetikai korszerűsítés ",null,"                                       "]
["Cím :5630 Békés, Széchenyi tér 1.,     "]
["\"A\" épület 2/11.                       "]
["                                       "]
["                                       ",null,"                                       "]
["A munka leírása: 5630 Békés,           ",null,"                                       "]
["Széchenyi  tér 1., \"A\"-ép 2/11.sz                                             "]
["szociális lakás felújítás munkák                                              "]
["épületvillamossági szakági munkáihoz                                          "]
["                                                                              "]
["                                                                              "]
[]
["Költségvetés főösszesítő"]
["Megnevezés",null,"Anyagköltség","Díjköltség"]
["1. Építmény közvetlen költségei",null,{"$f":"ROUND(SUM('Fejezet összesítő'!B2:B8),0)","v":0},{"$f":"ROUND(SUM('Fejezet összesítő'!C2:C8),0)","v":0}]
["1.1 Közvetlen önköltség összesen",null,{"$f":"ROUND(C24,0)","v":0},{"$f":"ROUND(D24,0)","v":0}]
["2.1 ÁFA vetítési alap",null,{"$f":"ROUND(C25+D25,0)","v":0}]
["2.2 Áfa",0.27,{"$f":"ROUND(C26*B27,0)","v":0}]
["3.  A munka ára",null,{"$f":"ROUND(C26+C27,0)","v":0}]

{"sheet":"Fejezet összesítő","index":4,"n_rows":9,"n_cols":3,"rows_kept":9,"cut":false,"hidden":false,"merged":[]}
["Fejezetek megnevezése","Anyag összege","Díj összege"]
["02  Védőcsövek",{"$f":"'02  Védőcsövek'!H25","v":0},{"$f":"'02  Védőcsövek'!I25","v":0}]
["03  Vezetékek kábelek",{"$f":"'03  Vezetékek kábelek'!H23","v":0},{"$f":"'03  Vezetékek kábelek'!I23","v":0}]
["04  Szerelvények",{"$f":"'04  Szerelvények'!H36","v":0},{"$f":"'04  Szerelvények'!I36","v":0}]
["05  Lámpatestek",{"$f":"'05  Lámpatestek'!H11","v":0},{"$f":"'05  Lámpatestek'!I11","v":0}]
["06  Elosztóberendezések",{"$f":"'06  Elosztóberendezések'!H5","v":0},{"$f":"'06  Elosztóberendezések'!I5","v":0}]
["07  Épület külső és belső gyengeáramú hálózata",{"$f":"'07  Épület külső és belső gyeng'!H23","v":0},{"$f":"'07  Épület külső és belső gyeng'!I23","v":0}]
["10  Iratok, jegyzőkönyvek",{"$f":"'10  Iratok, jegyzőkönyvek'!H9","v":0},{"$f":"'10  Iratok, jegyzőkönyvek'!I9","v":0}]
["Összesen:",{"$f":"ROUND(SUM(B2:B8),0)","v":0},{"$f":"ROUND(SUM(C2:C8), 0)","v":0}]

{"sheet":"02  Védőcsövek","index":5,"n_rows":25,"n_cols":9,"rows_kept":25,"cut":false,"hidden":false,"merged":[[1,0,1,5],[10,0,10,5]]}
["Ssz.","Tételszám","Tétel szövege","Menny.","Egység","Anyag egységár","Díj egységre","Anyag összesen","Díj összesen"]
["33 Falazás és egyéb kőművesmunka"]
[1,"33-000-34","Faláttörés 30x30 cm méretig, téglafalban, 12 cm falvastagságig",5,"db     ",null,null,{"$f":"ROUND(D3*F3, 0)","v":0},{"$f":"ROUND(D3*G3, 0)","v":0}]
[]
[2,"33-000-37-0000001","Faláttörés 30x30 cm méretig, vegyes vagy téglafalban, 40 cm falvastagságig",2,"db     ",null,null,{"$f":"ROUND(D5*F5, 0)","v":0},{"$f":"ROUND(D5*G5, 0)","v":0}]
[]
[3,"33-000-55","Horonyvésés téglafalban, 8,01-16,00 cm2 keresztmetszet között",110,"m      ",null,null,{"$f":"ROUND(D7*F7, 0)","v":0},{"$f":"ROUND(D7*G7, 0)","v":0}]
[]
[4,"33-000-56","Horonyvésés téglafalban, 16,01-24,00 cm2 keresztmetszet között",10.199999999999999,"m      ",null,null,{"$f":"ROUND(D9*F9, 0)","v":0},{"$f":"ROUND(D9*G9, 0)","v":0}]
[]
["71 Elektromosenergia-ellátás, villanyszerelés"]
[5,"71-001-1.1.1.1.1-0110116","Merev, simafalú műanyag védőcső elhelyezése, elágazó dobozokkal, előre elkészített falhoronyba, vékonyfalú kivitelben, könnyű mechanikai igénybevételre, Névleges méret: 11-16 mm HYDRO-THERM beltéri Mü III. vékonyfalú, hajlítható merev műanyag szürke",74,"m      ",null,null,{"$f":"ROUND(D12*F12, 0)","v":0},{"$f":"ROUND(D12*G12, 0)","v":0}]
[null,null,"védőcső 16 mm, Kód: MU-III 16"]
[]
[6,"71-001-11-0110316","Védőcső elhelyezése falon kívül, tartószerkezetre szerelve, merev vagy hajlékony műanyag csőből, elágazó dobozokkal, belső átmérő: 9-21 mm  DIFLEX gégecső, átmérő 20 mm",2.4,"m      ",null,null,{"$f":"ROUND(D15*F15, 0)","v":0},{"$f":"ROUND(D15*G15, 0)","v":0}]
[]
[7,"71-001-11-0110317","Védőcső elhelyezése falon kívül, tartószerkezetre szerelve, merev vagy hajlékony műanyag csőből, elágazó dobozokkal, belső átmérő: 9-21 mm  GEWIS FK15 lépésálló gégecső, átmérő 20 mm",110,"m      ",null,null,{"$f":"ROUND(D17*F17, 0)","v":0},{"$f":"ROUND(D17*G17, 0)","v":0}]
[]
[8,"71-001-11-0110318","Védőcső elhelyezése falon kívül, tartószerkezetre szerelve, merev vagy hajlékony műanyag csőből, elágazó dobozokkal, belső átmérő: 9-21 mm  GEWIS FK15 lépésálló gégecső, átmérő 25 mm",18,"m      ",null,null,{"$f":"ROUND(D19*F19, 0)","v":0},{"$f":"ROUND(D19*G19, 0)","v":0}]
[]
[9,"71-001-52-0122004","Elágazó doboz illetve szerelvénydoboz elhelyezése falon kívül, bármely méretben  HENSEL D 9045 összekötő doboz rézvezetékhez, 4 mm2, 5 pólusú 4 mm2-es sorkapoccsal, EAN: 40 12591 60 644 4",9,"db     ",null,null,{"$f":"ROUND(D21*F21, 0)","v":0},{"$f":"ROUND(D21*G21, 0)","v":0}]
[]
[10,"71-001-52-0122009","Erősáramú csatlakozó doboz elhelyezése Típus: OBO A11",3,"db     ",null,null,{"$f":"ROUND(D23*F23, 0)","v":0},{"$f":"ROUND(D23*G23, 0)","v":0}]
[]
[null,null,"Fejezet összesen:",{"$nulls":4},{"$f":"ROUND(SUM(H2:H24),0)","v":0},{"$f":"ROUND(SUM(I2:I24),0)","v":0}]

{"sheet":"03  Vezetékek kábelek","index":6,"n_rows":23,"n_cols":9,"rows_kept":23,"cut":false,"hidden":false,"merged":[[1,0,1,5]]}
["Ssz.","Tételszám","Tétel szövege","Menny.","Egység","Anyag egységár","Díj egységre","Anyag összesen","Díj összesen"]
["71 Elektromosenergia-ellátás, villanyszerelés"]
[1,"71-002-1-0210002","Szigetelt vezeték elhelyezése védőcsőbe húzva vagy vezetékcsatornába fektetve, réz vagy alumínium érrel, leágazó kötésekkel, szigetelés méréssel, a szerelvényekhez csatlakozó vezetékvégek bekötése nélkül, keresztmetszet: 0,5-2,5 mm2  Mcu 450/750V 1x1,5",352,"m      ",null,null,{"$f":"ROUND(D3*F3, 0)","v":0},{"$f":"ROUND(D3*G3, 0)","v":0}]
[null,null,"mm2, tömör vezetővel, /H07V-U/"]
[]
[2,"71-002-1-0210003","Szigetelt vezeték elhelyezése védőcsőbe húzva vagy vezetékcsatornába fektetve, réz vagy alumínium érrel, leágazó kötésekkel, szigetelés méréssel, a szerelvényekhez csatlakozó vezetékvégek bekötése nélkül, keresztmetszet: 0,5-2,5 mm2  Mcu 450/750V 1x2,5",420,"m      ",null,null,{"$f":"ROUND(D6*F6, 0)","v":0},{"$f":"ROUND(D6*G6, 0)","v":0}]
[null,null,"mm2, tömör vezetővel, /H07V-U/"]
[]
[3,"71-002-2-0210006","Szigetelt vezeték elhelyezése védőcsőbe húzva vagy vezetékcsatornába fektetve, réz vagy alumínium érrel, leágazó kötésekkel, szigetelés méréssel, a szerelvényekhez csatlakozó vezetékvégek bekötése nélkül, keresztmetszet: 4-6 mm2  Mkh 450/750V 1x  6mm2,",16,"m      ",null,null,{"$f":"ROUND(D9*F9, 0)","v":0},{"$f":"ROUND(D9*G9, 0)","v":0}]
[null,null,"tömör vezetővel, /H07V-U/"]
[]
[4,"71-002-3-0213010","Szigetelt vezeték elhelyezése védőcsőbe húzva vagy vezetékcsatornába fektetve, réz vagy alumínium érrel, leágazó kötésekkel, szigetelés méréssel, a szerelvényekhez csatlakozó vezetékvégek bekötése nélkül, keresztmetszet: 10-16 mm2  Mkh 450/750V 1x 10 mm2,",2,"m      ",null,null,{"$f":"ROUND(D12*F12, 0)","v":0},{"$f":"ROUND(D12*G12, 0)","v":0}]
[null,null,"különlegesen hajlékony rézvezetővel, /H07V-K/"]
[]
[5,"71-002-26-0217092","Kábelszerű vezeték elhelyezése előre elkészített tartószerkezetre, 1-5 erű, réz vagy alumínium érrel, elágazó dobozokkal és kötésekkel, szigetelés méréssel, a szerelvényekhez csatlakozó vezetékvégek bekötése nélkül, keresztmetszet: 1,5-2,5 mm2  MT 300/500",2,"m      ",null,null,{"$f":"ROUND(D15*F15, 0)","v":0},{"$f":"ROUND(D15*G15, 0)","v":0}]
[null,null,"V műanyag tömlő vezeték 3x1,5 mm2, hajlékony rézvezetővel, /H05VV-F/"]
[]
[6,"71-002-26-0221521","Kábelszerű vezeték elhelyezése előre elkészített tartószerkezetre, 1-5 erű, réz vagy alumínium érrel, elágazó dobozokkal és kötésekkel, szigetelés méréssel, a szerelvényekhez csatlakozó vezetékvégek bekötése nélkül, keresztmetszet: 1,5-2,5 mm2 ",42,"m      ",null,null,{"$f":"ROUND(D18*F18, 0)","v":0},{"$f":"ROUND(D18*G18, 0)","v":0}]
[null,null,"MBcu300/500 V  3x1,5 mm2, tömör rézvezetővel, /NYM/"]
[]
[7,"71-002-341","Kábelcsatlakozás kialakítása bekötéssel, kábelérzömítéssel, keresztmetszet: 16 mm2-ig",12,"db     ",null,null,{"$f":"ROUND(D21*F21, 0)","v":0},{"$f":"ROUND(D21*G21, 0)","v":0}]
[]
[null,null,"Fejezet összesen:",{"$nulls":4},{"$f":"ROUND(SUM(H2:H22),0)","v":0},{"$f":"ROUND(SUM(I2:I22),0)","v":0}]

{"sheet":"04  Szerelvények","index":7,"n_rows":36,"n_cols":9,"rows_kept":36,"cut":false,"hidden":false,"merged":[[1,0,1,5]]}
["Ssz.","Tételszám","Tétel szövege","Menny.","Egység","Anyag egységár","Díj egységre","Anyag összesen","Díj összesen"]
["71 Elektromosenergia-ellátás, villanyszerelés"]
[1,"71-001-11.1.1-0123021","Elágazó doboz illetve szerelvénydoboz elhelyezése, süllyesztve, fészekvésés nélkül, Névleges méret: Ø68 mm-ig, 2xØ68 mm-ig vagy négyzetes kivitelben, 40-60 mm mélységig, max. négyes sorolásig KAISER szerelvénydoboz téglafalba, ömlesztett kiszerelés, R:",50,"db     ",null,null,{"$f":"ROUND(D3*F3, 0)","v":0},{"$f":"ROUND(D3*G3, 0)","v":0}]
[null,null,"1055-31"]
[]
[2,"71-002-551","Motorbekötés ellenőrzése háromszori próbával",1,"db     ",null,null,{"$f":"ROUND(D6*F6, 0)","v":0},{"$f":"ROUND(D6*G6, 0)","v":0}]
[]
[3,"71-005-2.53.1-0562001","Összeépíthető világítási  és telekommunikációs szerelvények elemei; Kapcsolóbetét elhelyezése fedéllel (keret nélkül) egypólusú LEGRAND Valena egypólusú kapcsoló fehér R: 774401",4,"db     ",null,null,{"$f":"ROUND(D8*F8, 0)","v":0},{"$f":"ROUND(D8*G8, 0)","v":0}]
[]
[4,"71-005-2.53.2-0562642","Összeépíthető világítási  és telekommunikációs szerelvények elemei; Kapcsolóbetét elhelyezése fedéllel (keret nélkül) kétpólusú LEGRAND Valena IP44 kétpólusú kapcsoló, fehér R: 770092",3,"db     ",null,null,{"$f":"ROUND(D10*F10, 0)","v":0},{"$f":"ROUND(D10*G10, 0)","v":0}]
[]
[5,"71-005-2.53.4-0562007","Összeépíthető világítási  és telekommunikációs szerelvények elemei; Kapcsolóbetét elhelyezése fedéllel (keret nélkül) kétáramkörös (csillár) LEGRAND Valena csillárkapcsoló fehér R: 774405",3,"db     ",null,null,{"$f":"ROUND(D12*F12, 0)","v":0},{"$f":"ROUND(D12*G12, 0)","v":0}]
[]
[6,"71-005-2.63.1.1-0562061","Összeépíthető világítási  és telekommunikációs szerelvények elemei; Csatlakozóaljzat (dugaszolóaljzat) elhelyezése, földelt, egyes LEGRAND Valena 2P+F csatlakozóaljzat fehér R: 774420",29,"db     ",null,null,{"$f":"ROUND(D14*F14, 0)","v":0},{"$f":"ROUND(D14*G14, 0)","v":0}]
[]
[7,"71-005-2.63.1.1-0562893","Összeépíthető világítási  és telekommunikációs szerelvények elemei; Csatlakozóaljzat (dugaszolóaljzat) elhelyezése, földelt, egyes LEGRAND Valena IP44 2P+F csatlakozóaljzat csapófedéllel, fehér R: 774220",11,"db     ",null,null,{"$f":"ROUND(D16*F16, 0)","v":0},{"$f":"ROUND(D16*G16, 0)","v":0}]
[]
[8,"71-005-2.98.1.1-0562121","Összeépíthető világítási  és telekommunikációs szerelvények elemei; Keret elhelyezése, (105) egyes keret, vízszintes LEGRAND Valena egyes keret vízszintes fehér R: 774451",50,"db     ",null,null,{"$f":"ROUND(D18*F18, 0)","v":0},{"$f":"ROUND(D18*G18, 0)","v":0}]
[]
[9,"71-007-211-0313635","Sorkapocsdoboz elhelyezése terepi berendezések részére.  Tipus: OBO A6",2,"db     ",null,null,{"$f":"ROUND(D20*F20, 0)","v":0},{"$f":"ROUND(D20*G20, 0)","v":0}]
[]
[10,"71-013-41-0522674","Érintésvédelmi hálózat tartozékainak szerelése, vízmérő áthidalás, vezeték rögzítéssel  Áthidalás 1\" csőre, 2m hosszú átmérő 35mm2",1,"db     ",null,null,{"$f":"ROUND(D22*F22, 0)","v":0},{"$f":"ROUND(D22*G22, 0)","v":0}]
[]
[11,"71-013-42-0522672","Érintésvédelmi hálózat tartozékainak szerelése, zuhanytálca (EPH), egyenlő potenciálra hozás  Áthidalás 1/2\" csőre, 2m hosszú átmérő 10mm2",1,"db     ",null,null,{"$f":"ROUND(D24*F24, 0)","v":0},{"$f":"ROUND(D24*G24, 0)","v":0}]
[]
[12,"71-013-43-0522802","Érintésvédelmi hálózat tartozékainak szerelése, épületgépészeti csőhálózat földelő kötése  Földelő szerelvény 1/2\"",1,"db     ",null,null,{"$f":"ROUND(D26*F26, 0)","v":0},{"$f":"ROUND(D26*G26, 0)","v":0}]
[]
[13,"71-013-43-0522804","Érintésvédelmi hálózat tartozékainak szerelése, épületgépészeti csőhálózat földelő kötése  Földelő szerelvény   1\"",1,"db     ",null,null,{"$f":"ROUND(D28*F28, 0)","v":0},{"$f":"ROUND(D28*G28, 0)","v":0}]
[]
[14,"71-013-44","Érintésvédelmi hálózat tartozékainak szerelése, nagykiterjedésű fémtárgy földelő kötése",1,"db     ",null,null,{"$f":"ROUND(D30*F30, 0)","v":0},{"$f":"ROUND(D30*G30, 0)","v":0}]
[]
[15,"71-002-201-0000003","Vezeték összekötése és bekötése elosztóba kábelsaru nélkül, 5 vezetékszálig 2,5mm2 keresztmetszetig",9,"db     ",null,null,{"$f":"ROUND(D32*F32, 0)","v":0},{"$f":"ROUND(D32*G32, 0)","v":0}]
[]
[16,"71-002-361-0000004","Informatikai hálózat fogadó, rendező erősáramú csatlakozásának kialakítása",1,"db     ",null,null,{"$f":"ROUND(D34*F34, 0)","v":0},{"$f":"ROUND(D34*G34, 0)","v":0}]
[]
[null,null,"Fejezet összesen:",{"$nulls":4},{"$f":"ROUND(SUM(H2:H35),0)","v":0},{"$f":"ROUND(SUM(I2:I35),0)","v":0}]

{"sheet":"05  Lámpatestek","index":8,"n_rows":11,"n_cols":9,"rows_kept":11,"cut":false,"hidden":false,"merged":[[1,0,1,5]]}
["Ssz.","Tételszám","Tétel szövege","Menny.","Egység","Anyag egységár","Díj egységre","Anyag összesen","Díj összesen"]
["71 Elektromosenergia-ellátás, villanyszerelés"]
[1,"71-010-51-0213111","Normál kivitleű mennyezeti körfénycsöves lámpatest 1x22W elekrtonikus előtéttel,  opál búrával, fehér tükörrel, min. IP40",3,"db     ",null,null,{"$f":"ROUND(D3*F3, 0)","v":0},{"$f":"ROUND(D3*G3, 0)","v":0}]
[]
[2,"71-010-65-0115515","Csatlakozási hely kialaktása tükörvilágtás részére",1,"db     ",null,null,{"$f":"ROUND(D5*F5, 0)","v":0},{"$f":"ROUND(D5*G5, 0)","v":0}]
[]
[3,"71-010-2.1.1.2.3-0000001","Mennyezeti prizmabúrás fénycsőlámpatest, IP40 védettséggel, 1x36W, elektronikus előtéttel",2,"db     ",null,null,{"$f":"ROUND(D7*F7, 0)","v":0},{"$f":"ROUND(D7*G7, 0)","v":0}]
[]
[4,"71-010-2.1.1.2.3-0000019","Egyedi csillár részére csillárhorog  (Beruházói döntés alapján)",3,"db     ",null,null,{"$f":"ROUND(D9*F9, 0)","v":0},{"$f":"ROUND(D9*G9, 0)","v":0}]
[]
[null,null,"Fejezet összesen:",{"$nulls":4},{"$f":"ROUND(SUM(H2:H10),0)","v":0},{"$f":"ROUND(SUM(I2:I10),0)","v":0}]

{"sheet":"06  Elosztóberendezések","index":9,"n_rows":5,"n_cols":9,"rows_kept":5,"cut":false,"hidden":false,"merged":[[1,0,1,5]]}
["Ssz.","Tételszám","Tétel szövege","Menny.","Egység","Anyag egységár","Díj egységre","Anyag összesen","Díj összesen"]
["71 Elektromosenergia-ellátás, villanyszerelés"]
[1,"71-009-0","E  jelű lakás elosztóberendezés, felszerelve és bekötve szükséges segéd anyagokkal együtt. Tartalma:  1 db ABB 1SL 2045A00 1 db Fi rellé BCF6 40/2/003 40A 1 db Főkapcsoló ENSTO KS 3.40 4 db Kismegszakító B10A /1 P  7 db Kismegszakító C16A /19",1,"db     ",null,null,{"$f":"ROUND(D3*F3, 0)","v":0},{"$f":"ROUND(D3*G3, 0)","v":0}]
[]
[null,null,"Fejezet összesen:",{"$nulls":4},{"$f":"ROUND(SUM(H2:H4),0)","v":0},{"$f":"ROUND(SUM(I2:I4),0)","v":0}]

{"sheet":"07  Épület külső és belső gyeng","index":10,"n_rows":23,"n_cols":9,"rows_kept":23,"cut":false,"hidden":false,"merged":[[1,0,1,5],[6,0,6,5]]}
["Ssz.","Tételszám","Tétel szövege","Menny.","Egység","Anyag egységár","Díj egységre","Anyag összesen","Díj összesen"]
["33 Falazás és egyéb kőművesmunka"]
[1,"33-000-34","Faláttörés 30x30 cm méretig, téglafalban, 12 cm falvastagságig",2,"db     ",null,null,{"$f":"ROUND(D3*F3, 0)","v":0},{"$f":"ROUND(D3*G3, 0)","v":0}]
[]
[2,"33-000-55","Horonyvésés téglafalban, 8,01-16,00 cm2 keresztmetszet között",18,"m      ",null,null,{"$f":"ROUND(D5*F5, 0)","v":0},{"$f":"ROUND(D5*G5, 0)","v":0}]
[]
["71 Elektromosenergia-ellátás, villanyszerelés"]
[3,"71-001-1.1.1.1.1-0110116","Merev, simafalú műanyag védőcső elhelyezése, elágazó dobozokkal, előre elkészített falhoronyba, vékonyfalú kivitelben, könnyű mechanikai igénybevételre, Névleges méret: 11-16 mm HYDRO-THERM beltéri Mü III. vékonyfalú, hajlítható merev műanyag szürke",41,"m      ",null,null,{"$f":"ROUND(D8*F8, 0)","v":0},{"$f":"ROUND(D8*G8, 0)","v":0}]
[null,null,"védőcső 16 mm, Kód: MU-III 16"]
[]
[4,"71-002-41.1.1-0111856","Jelátviteli koaxiális kábel elhelyezése védőcsőbe húzva vagy vezetékcsatornába fektetve, alufólia vagy rézszövet árnyékolással, 75 ohm Koaxiális kábel RG 59 (75 Ohm)",26,"m      ",null,null,{"$f":"ROUND(D11*F11, 0)","v":0},{"$f":"ROUND(D11*G11, 0)","v":0}]
[]
[5,"71-002-42.1.1-0111901","Adatátviteli kábel elhelyezése védőcsőbe húzva vagy vezetékcsatornába fektetve, strukturált adatátviteli kábel strukturált számítógépes adatátviteli hálózatokhoz, 1000 Mbit/s átviteli sebesség (CAT 5e kategória) UTP cat. 5e. falikábel",58,"m      ",null,null,{"$f":"ROUND(D13*F13, 0)","v":0},{"$f":"ROUND(D13*G13, 0)","v":0}]
[]
[6,"71-005-2.53.8-0562231","Összeépíthető világítási  és telekommunikációs szerelvények elemei; Kapcsolóbetét elhelyezése fedéllel (keret nélkül) telefon, TV, PC, audio LEGRAND Valena TV antenna-csatlakozóaljzat végzáró, 10dB fehér R: 774430",2,"db     ",null,null,{"$f":"ROUND(D15*F15, 0)","v":0},{"$f":"ROUND(D15*G15, 0)","v":0}]
[]
[7,"71-005-2.53.8-0562896","Összeépíthető világítási  és telekommunikációs szerelvények elemei; Kapcsolóbetét elhelyezése fedéllel (keret nélkül) telefon, TV, PC, audio LEGRAND Valena 1xRJ45 LCS2 Cat5e UTP informatikai csatlakozóaljzat, körömmel, fehér R: 774230",2,"db     ",null,null,{"$f":"ROUND(D17*F17, 0)","v":0},{"$f":"ROUND(D17*G17, 0)","v":0}]
[]
[8,"71-005-2.98.1.1-0562121","Összeépíthető világítási  és telekommunikációs szerelvények elemei; Keret elhelyezése, (105) egyes keret, vízszintes LEGRAND Valena egyes keret vízszintes fehér R: 774451",4,"db     ",null,null,{"$f":"ROUND(D19*F19, 0)","v":0},{"$f":"ROUND(D19*G19, 0)","v":0}]
[]
[9,"71-009-0-0000010","Informatikai hálózat fogadó szekrény",1,"db     ",null,null,{"$f":"ROUND(D21*F21, 0)","v":0},{"$f":"ROUND(D21*G21, 0)","v":0}]
[]
[null,null,"Fejezet összesen:",{"$nulls":4},{"$f":"ROUND(SUM(H2:H22),0)","v":0},{"$f":"ROUND(SUM(I2:I22),0)","v":0}]

{"sheet":"10  Iratok, jegyzőkönyvek","index":11,"n_rows":11,"n_cols":9,"rows_kept":11,"cut":false,"hidden":false,"merged":[[1,0,1,5]]}
["Ssz.","Tételszám","Tétel szövege","Menny.","Egység","Anyag egységár","Díj egységre","Anyag összesen","Díj összesen"]
["71 Elektromosenergia-ellátás, villanyszerelés"]
[1,"71-013-46","Érintésvédelmi mérés, szigetelés ellenállás mérés és jegyzőkönyv készítése",1,"db     ",null,null,{"$f":"ROUND(D3*F3, 0)","v":0},{"$f":"ROUND(D3*G3, 0)","v":0}]
[]
[2,"71-013-46-0000001","Első üzembehelyezési jegyzőkönyv készítése",1,"db     ",null,null,{"$f":"ROUND(D5*F5, 0)","v":0},{"$f":"ROUND(D5*G5, 0)","v":0}]
[]
[3,"71-013-46-0000003","Megvalósulási tervdokumentáció készítése",1,"db     ",null,null,{"$f":"ROUND(D7*F7, 0)","v":0},{"$f":"ROUND(D7*G7, 0)","v":0}]
[]
[4,"K","NKMÁramhálózat mérőóra ügyintézés",1,"db",0,null,{"$f":"ROUND(D9*F9, 0)","v":0},{"$f":"ROUND(D9*G9, 0)","v":0}]
[]
[null,null,"Fejezet összesen:",{"$nulls":4},{"$f":"ROUND(SUM(H2:H10),0)","v":0},{"$f":"ROUND(SUM(I2:I10),0)","v":0}]